bitfinex-derivatives/quotes_SOLF0:USTF0_20251023
["timestamp","ask_amount","ask_price","bid_price","bid_amount"]
[1761200355402,5.33765609,186.59,186.41,4.8265]
[1761200355604,2.92,186.58,186.41,4.8265]
[1761200355910,7.43738172,186.58,186.4,2.95]
[1761200356110,2.92,186.54,186.35,2.95]
[1761200356600,2.92,186.54,186.43,4.826]
[1761200357216,2.92,186.54,186.37,2.95]
[1761200357417,2.92,186.53,186.37,2.95]
[1761200357608,5.33765609,186.55,186.37,7.7777]
[1761200357609,2.92,186.52,186.37,7.7777]
[1761200358510,2.92,186.5,186.34,4.8284]
[1761200359318,2.92,186.5,186.32,2.95]
[1761200359512,19.04,186.45,186.17,62.0]
[1761200359705,5.33765609,186.46,186.12,16.12094907]
[1761200359706,2.92,186.43,186.28,2.95]
[1761200360409,2.92,186.43,186.32,4.8289]
[1761200360611,2.92,186.48,186.33,2.95]
[1761200361117,2.92,186.48,186.27,2.95]
[1761200361118,19.04,186.47,186.27,2.95]
[1761200361412,2.92,186.45,186.27,2.95]
[1761200361638,2.92,186.45,186.27,7.7803]
[1761200361811,2.92,186.45,186.28,2.95]
[1761200362216,2.92,186.43,186.28,2.95]
[1761200362512,2.92,186.42,186.23,2.95]
[1761200363011,2.92,186.4,186.23,7.7812]
[1761200363218,2.92,186.39,186.23,2.95]
[1761200363520,2.92,186.39,186.24,7.7811]
[1761200363913,2.92,186.39,186.24,2.95]
[1761200364708,2.92,186.39,186.28,2.84]
[1761200369016,2.92,186.39,186.27,2.9]
[1761200369417,2.92,186.39,186.28,2.9]
[1761200370109,2.92,186.39,186.17,9.6658]
[1761200370110,2.92,186.39,186.26,4.8304]
[1761200370312,2.92,186.39,186.26,7.7304]
[1761200370714,2.92,186.39,186.27,2.9]
[1761200370919,2.92,186.39,186.28,2.9]
[1761200372020,2.92,186.39,186.25,4.8306]
[1761200372214,2.92,186.39,186.24,4.831]
[1761200372416,2.92,186.39,186.24,7.731]
[1761200372718,2.69,186.38,186.24,7.731]
[1761200372915,2.69,186.36,186.21,7.7318]
[1761200373621,2.69,186.36,186.24,2.9]
[1761200375324,2.69,186.36,186.26,2.9]
[1761200375712,2.69,186.36,186.09,16.12]
[1761200375918,2.69,186.35,186.16,2.9]
[1761200376421,2.69,186.35,186.23,2.9]
[1761200376820,2.69,186.39,186.27,2.9]
[1761200378215,2.69,186.39,186.22,2.9]
[1761200378725,2.69,186.38,186.22,2.9]
[1761200379221,2.69,186.38,186.24,2.9]
[1761200379621,2.69,186.38,186.29,2.9]
[1761200380321,2.69,186.38,186.25,2.9]
[1761200380718,6.76888356,186.38,186.25,2.9]
[1761200381021,2.69,186.38,186.25,2.9]
[1761200383119,2.69,186.37,186.25,2.9]
[1761200383320,2.69,186.37,186.26,2.9]
[1761200383923,2.69,186.37,186.26,7.7303]
[1761200384127,2.69,186.37,186.27,2.9]
[1761200385630,2.69,186.37,186.28,2.9]
[1761200386225,4.09183643,186.41,186.3,2.9]
[1761200386226,2.69,186.41,186.3,2.9]
[1761200386626,6.78251919,186.4,186.3,2.9]
[1761200386827,6.78251919,186.4,186.31,4.8292]
[1761200386828,2.69,186.4,186.31,4.8292]
[1761200387132,2.69,186.4,186.32,2.9]
[1761200387329,4.09652744,186.39,186.32,2.9]
[1761200387731,2.69,186.4,186.32,2.9]
[1761200388427,32.63,186.44,186.32,2.9]
[1761200388620,4.10703549,186.43,186.32,2.9]
[1761200388826,4.10703549,186.42,186.32,2.9]
[1761200389034,2.69,186.44,186.32,2.9]
[1761200389236,4.10664054,186.43,186.32,2.9]
[1761200389440,4.10664054,186.42,186.32,2.9]
[1761200389727,2.69,186.44,186.32,2.9]
[1761200389728,4.10664054,186.41,186.32,2.9]
[1761200389932,2.69,186.44,186.33,4.8286]
[1761200390133,4.11417271,186.43,186.34,2.9]
[1761200390325,4.11417271,186.42,186.34,2.9]
[1761200390522,4.11417271,186.41,186.34,2.9]
[1761200390725,4.11417271,186.4,186.34,2.9]
[1761200390935,7.59864939,186.44,186.34,2.9]
[1761200391135,6.81074952,186.43,186.34,2.9]
[1761200391323,2.69,186.41,186.27,5.33765609]
[1761200391642,4.12074952,186.4,186.28,2.9]
[1761200391830,2.69,186.41,186.28,2.9]
[1761200392130,4.12511136,186.4,186.31,2.9]
[1761200392329,4.12511136,186.39,186.31,2.9]
[1761200392634,4.12511136,186.38,186.31,2.9]
[1761200392830,4.12511136,186.37,186.31,2.9]
[1761200393032,4.12511136,186.36,186.31,2.9]
[1761200393232,4.94852309,186.4,186.32,2.9]
[1761200393427,4.13414609,186.39,186.32,2.9]
[1761200393624,4.13414609,186.38,186.32,2.9]
[1761200393829,4.13414609,186.37,186.32,2.9]
[1761200394028,4.13414609,186.36,186.32,2.9]
[1761200394236,4.94852309,186.4,186.32,2.9]
[1761200394430,9.08598392,186.39,186.32,2.9]
[1761200394732,4.13746083,186.38,186.32,2.9]
[1761200394935,4.13746083,186.37,186.32,2.9]
[1761200395129,4.13746083,186.36,186.32,2.9]
[1761200395434,4.13746083,186.35,186.32,2.9]
[1761200395634,4.13746083,186.34,186.32,2.9]
[1761200395835,4.94852309,186.38,186.32,2.9]
[1761200396030,4.13858438,186.37,186.32,2.9]
[1761200396225,9.17555807,186.41,186.32,2.9]
[1761200396226,4.13858438,186.36,186.32,2.9]
[1761200396431,4.13858438,186.35,186.32,2.9]
[1761200396639,4.94852309,186.33,186.27,2.9]
[1761200396936,4.13858438,186.32,186.27,2.9]
[1761200397233,4.13858438,186.31,186.24,2.9]
[1761200397534,4.13858438,186.3,186.24,2.9]
[1761200397730,4.94852309,186.35,186.24,2.9]
[1761200398035,4.94852309,186.33,186.24,2.9]
[1761200398235,4.14835374,186.32,186.24,2.9]
[1761200398436,4.14835374,186.31,186.24,2.9]
[1761200398636,4.14835374,186.3,186.24,2.9]
[1761200398938,4.94852309,186.35,186.25,4.8306]
[1761200399231,4.15329306,186.34,186.26,2.87]
[1761200399432,4.15329306,186.33,186.26,2.87]
[1761200399634,4.15329306,186.32,186.28,2.87]
[1761200399837,4.15329306,186.31,186.28,2.87]
[1761200400038,4.15329306,186.3,186.28,2.87]
[1761200400240,4.15329306,186.29,186.28,2.87]
[1761200400535,4.16271737,186.29,186.28,2.87]
[1761200400835,9.11124046,186.29,186.24,2.87]
[1761200401035,9.11124046,186.29,186.17,2.87]
[1761200401036,9.11124046,186.28,186.17,2.87]
[1761200401231,9.11124046,186.27,186.17,2.87]
[1761200401432,4.94852309,186.31,186.21,2.87]
[1761200401632,4.15524891,186.3,186.21,2.87]
[1761200401936,2.81,186.34,186.21,2.87]
[1761200401937,4.94852309,186.34,186.21,2.87]
[1761200402141,8.58184526,186.33,186.21,2.87]
[1761200402326,8.58184526,186.32,186.21,2.87]
[1761200402528,8.58184526,186.31,186.27,2.87]
[1761200402730,4.94852309,186.34,186.27,2.87]
[1761200402731,4.94852309,186.35,186.27,2.87]
[1761200402932,8.58552726,186.34,186.27,2.87]
[1761200403236,4.15699602,186.33,186.27,2.87]
[1761200403434,4.15699602,186.32,186.29,2.87]
[1761200403637,4.94852309,186.37,186.29,2.87]
[1761200403839,4.15805931,186.36,186.29,2.87]
[1761200404027,4.15805931,186.35,186.29,2.87]
[1761200404231,4.94852309,186.4,186.29,2.87]
[1761200404437,4.15794626,186.39,186.32,7.699]
[1761200404633,4.15794626,186.38,186.23,2.87]
[1761200404937,4.15794626,186.37,186.25,2.87]
[1761200405129,4.15794626,186.36,186.3,4.8295]
[1761200405329,7.75852309,186.4,186.31,2.87]
[1761200405540,4.94852309,186.44,186.31,2.87]
[1761200405840,4.11589849,186.43,186.35,2.87]
[1761200406028,7.75852309,186.45,186.35,2.87]
[1761200406029,4.11589849,186.42,186.35,2.87]
[1761200406339,2.81,186.45,186.35,2.87]
[1761200406540,4.11383767,186.44,186.35,2.87]
[1761200406836,7.75852309,186.49,186.37,2.87]
[1761200407034,8.76737892,186.48,186.37,2.87]
[1761200407230,8.76487282,186.47,186.37,2.87]
[1761200407430,4.11339182,186.46,186.37,2.87]
[1761200407635,4.11339182,186.45,186.37,2.87]
[1761200407839,4.11339182,186.44,186.37,2.87]
[1761200408139,2.81,186.48,186.37,2.87]
[1761200408441,4.1088927,186.47,186.37,2.87]
[1761200408641,4.1088927,186.46,186.37,2.87]
[1761200408843,2.81,186.48,186.38,4.8275]
[1761200409137,4.10916412,186.47,186.38,4.8275]
[1761200409337,2.81,186.48,186.38,7.6975]
[1761200409537,11.00708638,186.52,186.39,2.87]
[1761200409730,11.56460113,186.51,186.39,2.87]
[1761200409932,4.10722201,186.5,186.39,2.87]
[1761200410130,4.10722201,186.49,186.4,2.87]
[1761200410342,2.81,186.51,186.4,2.87]
[1761200410538,4.10504684,186.5,186.4,2.87]
[1761200411048,4.10504684,186.5,186.41,2.87]
[1761200411341,2.81,186.51,186.41,2.87]
[1761200411542,6.91504684,186.51,186.41,2.87]
[1761200411741,2.81,186.51,186.42,7.6964]
[1761200411941,2.81,186.51,186.43,2.87]
[1761200413342,4.0986385,186.51,186.39,4.827]
[1761200413644,2.81,186.5,186.39,7.697]
[1761200413844,2.81,186.5,186.4,2.87]
[1761200414246,2.81,186.5,186.41,2.87]
[1761200415239,2.81,186.5,186.42,7.6964]
[1761200416146,2.81,186.5,186.39,4.827]
[1761200416647,2.81,186.5,186.39,7.697]
[1761200416843,2.81,186.5,186.41,7.6967]
[1761200417347,2.81,186.5,186.29,8.0]
[1761200417348,2.81,186.5,186.36,2.87]
[1761200418143,2.81,186.5,186.37,2.87]
[1761200418644,3.24856329,186.44,186.29,2.87]
[1761200418941,2.81,186.43,186.29,2.87]
[1761200419950,2.81,186.43,186.32,4.8288]
[1761200420150,2.81,186.43,186.29,2.87]
[1761200420151,2.81,186.39,186.29,2.87]
[1761200420646,2.81,186.42,186.3,2.87]
[1761200421946,2.81,186.42,186.31,4.8292]
[1761200422142,2.81,186.42,186.3,2.87]
[1761200422445,3.24856329,186.4,186.3,2.87]
[1761200422650,2.81,186.39,186.3,2.87]
[1761200426676,2.67,186.35,186.21,2.78]
[1761200427539,3.24856329,186.32,186.22,2.78]
[1761200427744,2.67,186.31,186.18,2.78]
[1761200428546,2.73,186.27,186.14,141.69]
[1761200428741,3.24856329,186.24,186.14,141.69]
[1761200428944,2.73,186.23,186.12,48.74]
[1761200429249,3.24856329,186.2,186.12,48.74]
[1761200429448,2.73,186.19,186.12,48.74]
[1761200430351,2.73,186.19,186.1,2.71]
[1761200430954,2.73,186.19,186.06,7.5456]
[1761200431453,2.73,186.19,186.06,2.71]
[1761200433349,2.73,186.19,186.02,48.68]
[1761200433350,2.73,186.19,186.07,2.71]
[1761200434449,2.73,186.19,186.09,2.71]
[1761200435849,2.73,186.19,186.1,4.8346]
[1761200436050,2.73,186.19,186.11,2.71]
[1761200436454,2.73,186.23,186.13,2.71]
[1761200437954,2.73,186.22,186.13,2.71]
[1761200440851,2.73,186.22,186.13,7.544]
[1761200441554,2.73,186.22,186.1,4.8346]
[1761200441758,2.73,186.22,186.09,2.71]
[1761200442550,2.73,186.22,186.12,4.8342]
[1761200443651,2.73,186.22,186.14,4.8337]
[1761200447760,2.73,186.22,186.15,4.8332]
[1761200448859,1.27921847,186.21,186.15,4.8332]
[1761200449162,4.10520969,186.29,186.16,2.71]
[1761200449163,4.00921847,186.23,186.16,2.71]
[1761200449365,4.00921847,186.27,186.18,2.71]
[1761200449552,4.00921847,186.27,186.19,1.27921847]
[1761200449862,4.00921847,186.27,186.18,2.71]
[1761200450061,4.00921847,186.27,186.18,7.5427]
[1761200450259,1.27921847,186.25,186.18,2.71]
[1761200450464,1.27921847,186.25,186.18,3.98921847]
[1761200450660,4.00921847,186.27,186.18,3.98921847]
[1761200450958,4.00921847,186.27,186.19,4.8322]
[1761200451160,2.73,186.24,186.11,2.71]
[1761200451358,2.73,186.24,186.16,2.71]
[1761200451668,2.73,186.24,186.18,4.8326]
[1761200451861,2.73,186.24,186.17,1.27921847]
[1761200452558,2.73,186.24,186.18,2.71]
[1761200452764,2.73,186.24,186.11,23.8]
[1761200452765,1.27921847,186.27,186.2,2.71]
[1761200453261,2.73,186.26,186.19,1.27921847]
[1761200453462,2.73,186.26,186.19,3.98921847]
[1761200454865,4.00921847,186.26,186.19,3.98921847]
[1761200455065,4.00921847,186.26,186.2,4.8322]
[1761200455864,2.73,186.25,186.19,3.98921847]
[1761200456166,4.00921847,186.24,186.17,1.27921847]
[1761200456667,2.73,186.23,186.17,4.8327]
[1761200456868,2.73,186.23,186.15,3.98921847]
[1761200457070,2.73,186.23,186.08,23.56]
[1761200457071,2.73,186.21,186.13,1.27921847]
[1761200457265,2.73,186.21,186.14,4.8336]
[1761200458158,2.73,186.21,186.13,3.98921847]
[1761200458364,1.27921847,186.17,186.09,1.27921847]
[1761200458564,4.04921847,186.18,186.11,1.27921847]
[1761200458766,2.77,186.18,186.13,1.27921847]
[1761200459271,2.77,186.18,186.13,4.19921847]
[1761200459472,2.77,186.18,186.13,1.27921847]
[1761200459773,4.11617016,186.22,186.13,1.27921847]
[1761200459774,4.11843467,186.21,186.13,4.19921847]
[1761200459976,4.04921847,186.22,186.13,4.19921847]
[1761200460176,4.04921847,186.22,186.15,6.11271847]
[1761200460470,2.77,186.22,186.15,4.19921847]
[1761200460670,4.04921847,186.26,186.19,6.11161847]
[1761200460877,2.77,186.26,186.19,9.03161847]
[1761200461171,4.12046877,186.27,186.21,6.11101847]
[1761200461371,2.77,186.3,186.22,1.27921847]
[1761200461372,4.12046877,186.29,186.22,1.27921847]
[1761200461672,4.12046877,186.29,186.22,4.19921847]
[1761200461875,4.12046877,186.29,186.24,1.27921847]
[1761200462270,4.93024186,186.33,186.24,1.27921847]
[1761200462472,4.12768338,186.32,186.26,1.27921847]
[1761200462677,4.12709515,186.33,186.29,2.92]
[1761200462869,7.70024186,186.37,186.29,2.92]
[1761200463070,4.12702157,186.36,186.29,2.92]
[1761200463265,4.12702157,186.35,186.29,2.92]
[1761200463469,4.12702157,186.34,186.29,2.92]
[1761200463672,2.77,186.37,186.29,2.92]
[1761200463974,17.37202704,186.41,186.32,2.92]
[1761200463975,4.13072912,186.36,186.32,2.92]
[1761200464173,2.77,186.4,186.32,2.92]
[1761200464376,4.12038451,186.39,186.32,2.92]
[1761200464678,4.12038451,186.38,186.33,2.92]
[1761200464876,2.77,186.4,186.33,2.92]
[1761200465078,4.11920306,186.39,186.33,2.92]
[1761200465374,4.93024186,186.43,186.33,2.92]
[1761200465578,4.11909083,186.42,186.39,2.92]
[1761200465774,4.11909083,186.41,186.39,2.92]
[1761200466078,4.13221441,186.43,186.39,2.92]
[1761200466277,4.93024186,186.47,186.4,4.827]
[1761200466477,2.77,186.48,186.35,3.25202704]
[1761200466478,4.13098789,186.46,186.35,3.25202704]
[1761200466684,2.77,186.49,186.41,2.92]
[1761200466972,4.13061359,186.48,186.41,2.92]
[1761200467168,2.77,186.46,186.31,2.92]
[1761200467477,4.13061359,186.47,186.31,2.92]
[1761200467478,4.93024186,186.44,186.31,2.92]
[1761200467671,2.77,186.42,186.31,2.92]
[1761200467872,2.77,186.46,186.32,2.92]
[1761200468073,4.13041276,186.45,186.32,2.92]
[1761200468371,4.13041276,186.44,186.32,2.92]
[1761200468572,2.77,186.46,186.36,2.92]
[1761200468875,4.12877512,186.45,186.36,2.92]
[1761200469075,4.12877512,186.44,186.36,2.92]
[1761200469372,4.1269068,186.45,186.36,2.92]
[1761200469578,2.77,186.46,186.36,2.92]
[1761200469774,6.89690651,186.45,186.36,2.92]
[1761200470079,4.12690651,186.44,186.36,2.92]
[1761200470377,4.93024186,186.48,186.31,2.92]
[1761200470378,4.12612686,186.43,186.31,2.92]
[1761200470576,2.77,186.41,186.31,2.92]
[1761200470781,2.77,186.39,186.25,2.92]
[1761200471079,6.89612686,186.38,186.25,2.92]
[1761200471281,2.77,186.38,186.28,2.92]
[1761200471980,4.12734665,186.37,186.28,2.92]
[1761200472179,2.77,186.42,186.28,2.92]
[1761200472377,6.48555807,186.46,186.23,2.92]
[1761200472378,2.77,186.4,186.23,2.92]
[1761200472570,2.77,186.38,186.23,2.92]
[1761200472775,2.77,186.36,186.23,2.92]
[1761200472971,4.12633483,186.36,186.26,2.92]
[1761200473171,2.77,186.39,186.26,2.92]
[1761200473477,2.77,186.37,186.26,2.92]
[1761200473676,2.77,186.35,186.22,7.7515]
[1761200473876,2.77,186.33,186.22,7.7515]
[1761200474082,2.77,186.32,186.22,7.7515]
[1761200474380,2.77,186.32,186.19,5.34601587]
[1761200474381,2.77,186.32,186.24,7.7511]
[1761200474576,2.77,186.32,186.15,2.92]
[1761200474884,16.12,186.22,186.03,4.8364]
[1761200475074,2.77,186.2,186.03,7.7564]
[1761200475269,2.77,186.18,186.03,7.7564]
[1761200475475,2.77,186.17,186.03,7.7564]
[1761200476078,2.77,186.17,186.02,2.92]
[1761200476979,2.77,186.22,186.09,2.92]
[1761200477980,2.77,186.21,186.09,2.92]
[1761200479077,2.77,186.21,186.11,4.8344]
[1761200479686,2.77,186.21,186.13,7.7538]
[1761200479889,2.77,186.21,186.13,2.92]
[1761200480178,2.77,186.21,186.15,4.8334]
[1761200480385,6.89892791,186.26,186.13,2.92]
[1761200480578,2.77,186.26,186.13,2.92]
[1761200480774,2.77,186.26,186.13,7.7539]
[1761200481185,2.77,186.25,186.13,7.7539]
[1761200482087,4.12901313,186.25,186.13,7.7539]
[1761200482280,2.77,186.24,186.13,7.7539]
[1761200484388,2.73,186.23,186.13,7.7539]
[1761200484682,2.73,186.22,186.13,7.7539]
[1761200485791,4.1297782,186.26,186.15,2.69]
[1761200485977,2.73,186.27,186.15,2.69]
[1761200486183,2.73,186.26,186.13,4.834]
[1761200486391,2.73,186.25,186.13,4.834]
[1761200486580,2.73,186.25,186.06,2.69]
[1761200487282,2.73,186.25,186.09,4.8348]
[1761200487489,2.73,186.25,186.09,7.5248]
[1761200487689,2.73,186.24,186.09,7.5248]
[1761200488189,2.73,186.23,186.09,7.5248]
[1761200488382,5.34601587,186.23,186.1,2.69]
[1761200488579,2.84,186.22,186.1,2.69]
[1761200488789,2.84,186.21,186.1,2.69]
[1761200488987,2.84,186.21,186.05,48.36]
[1761200488988,2.84,186.21,186.06,2.68]
[1761200489284,2.84,186.21,186.08,7.5153]
[1761200489491,2.84,186.21,186.08,2.68]
[1761200490494,2.84,186.21,186.1,7.5147]
[1761200490893,2.84,186.26,186.11,2.68]
[1761200491098,2.84,186.26,186.16,4.833]
[1761200491597,2.84,186.24,186.01,2.68]
[1761200491792,2.84,186.22,186.02,2.68]
[1761200491992,2.84,186.21,186.02,2.68]
[1761200492384,2.84,186.21,186.05,4.8358]
[1761200492589,2.84,186.2,186.05,7.5158]
[1761200493094,2.84,186.19,186.05,7.5158]
[1761200493292,2.84,186.18,186.07,4.8355]
[1761200493488,2.84,186.18,186.07,7.5155]
[1761200493697,2.84,186.18,186.08,2.68]
[1761200494599,2.84,186.18,186.06,2.68]
[1761200494801,2.84,186.18,186.01,2.68]
[1761200495096,2.84,186.17,186.04,4.8363]
[1761200495691,2.84,186.17,186.06,4.8358]
[1761200496701,2.84,186.16,186.06,4.8358]
[1761200497486,2.84,186.16,186.04,4.8363]
[1761200497688,2.84,186.15,186.01,2.68]
[1761200497893,2.84,186.14,186.01,2.68]
[1761200498095,2.84,186.11,185.96,2.68]
[1761200498894,2.84,186.11,186.0,7.5174]
[1761200499591,2.84,186.11,186.0,4.8374]
[1761200499785,2.84,186.11,186.01,2.68]
[1761200501097,2.84,186.11,185.98,7.5179]
[1761200502798,2.84,186.11,186.0,2.68]
[1761200504106,2.84,186.11,186.01,2.68]
[1761200505401,2.84,186.15,185.96,2.68]
[1761200505997,16.12,186.17,186.03,4.8364]
[1761200506203,2.84,186.14,186.03,4.8364]
[1761200506502,2.84,186.13,186.02,2.68]
[1761200506901,2.84,186.12,186.02,2.68]
[1761200508304,2.84,186.12,186.02,7.5166]
[1761200508907,2.84,186.12,186.02,2.68]
[1761200509602,2.84,186.12,185.99,4.8375]
[1761200509809,2.84,186.12,186.0,2.68]
[1761200510210,2.84,186.11,186.0,2.68]
[1761200511008,2.84,186.1,186.0,2.68]
[1761200512306,4.93024186,186.17,186.01,2.68]
[1761200512506,4.04997625,186.19,186.12,2.68]
[1761200512703,2.84,186.25,186.12,2.68]
[1761200513007,2.84,186.25,186.15,4.8335]
[1761200513208,2.84,186.25,186.15,7.5135]
[1761200513407,5.34601587,186.32,186.15,7.5135]
[1761200513408,6.95781543,186.3,186.15,2.68]
[1761200513608,4.11781543,186.29,186.17,2.68]
[1761200513815,2.84,186.27,186.17,2.68]
[1761200514112,6.95781543,186.27,186.17,2.68]
[1761200514309,4.11781543,186.26,186.17,2.68]
[1761200514504,4.11781543,186.25,186.17,2.68]
[1761200514705,4.11781543,186.26,186.18,4.8327]
[1761200515014,2.84,186.27,186.18,4.8327]
[1761200515206,4.12748219,186.26,186.18,4.8327]
[1761200515405,4.13280516,186.25,186.18,4.8327]
[1761200515615,2.84,186.27,186.18,4.8327]
[1761200515915,4.1328046,186.26,186.18,4.8327]
[1761200516114,4.1328046,186.25,186.18,4.8327]
[1761200516302,2.84,186.27,186.18,4.8327]
[1761200516505,4.13586268,186.26,186.18,4.8327]
[1761200516719,4.13586268,186.25,186.18,4.8327]
[1761200516916,10.27625773,186.35,186.2,7.5121]
[1761200516917,2.84,186.34,186.2,7.5121]
[1761200517217,2.84,186.32,186.2,7.5121]
[1761200517414,6.97553147,186.31,186.2,7.5121]
[1761200517618,4.13553147,186.3,186.2,7.5121]
[1761200517819,4.13553147,186.29,186.22,4.8317]
[1761200518020,4.13553147,186.28,186.22,7.5117]
[1761200518322,4.13553147,186.27,186.23,2.68]
[1761200518626,2.84,186.31,186.23,2.68]
[1761200518810,4.1416509,186.3,186.23,2.68]
[1761200519011,4.1416509,186.29,186.23,2.68]
[1761200519218,4.1416509,186.28,186.23,2.68]
[1761200519426,4.1416509,186.27,186.23,2.68]
[1761200519623,4.1416509,186.26,186.23,2.68]
[1761200519822,2.84,186.31,186.23,2.68]
[1761200520125,4.14240179,186.3,186.23,2.68]
[1761200520325,4.14240179,186.29,186.23,2.68]
[1761200520529,6.99240179,186.28,186.18,4.8325]
[1761200520726,6.99240179,186.27,186.18,4.8325]
[1761200520924,4.14240179,186.26,186.18,4.8325]
[1761200521119,4.14240179,186.25,186.18,4.8325]
[1761200521327,4.14240179,186.24,186.18,4.8325]
[1761200521518,2.85,186.27,186.18,4.8325]
[1761200521719,4.14124754,186.26,186.18,7.6425]
[1761200521923,4.14124754,186.25,186.18,7.6425]
[1761200522121,2.85,186.32,186.19,2.81]
[1761200522424,4.14106068,186.31,186.21,2.81]
[1761200522622,4.14106068,186.3,186.21,2.81]
[1761200522826,4.14106068,186.29,186.21,2.81]
[1761200523025,4.14106068,186.28,186.21,2.81]
[1761200523230,4.14106068,186.27,186.21,2.81]
[1761200523426,2.85,186.32,186.21,2.81]
[1761200523729,4.13799675,186.31,186.21,2.81]
[1761200523926,4.13799675,186.3,186.21,2.81]
[1761200524124,4.13799675,186.29,186.21,2.81]
[1761200524324,4.13799675,186.28,186.21,2.81]
[1761200524524,2.85,186.32,186.21,2.81]
[1761200524725,2.85,186.3,186.21,2.81]
[1761200524930,4.13674203,186.29,186.21,2.81]
[1761200525126,4.13674203,186.28,186.21,2.81]
[1761200525319,4.13674203,186.27,186.21,2.81]
[1761200525519,4.13638171,186.26,186.17,2.81]
[1761200525718,2.85,186.28,186.17,2.81]
[1761200525925,2.85,186.26,186.17,2.81]
[1761200526126,4.13638171,186.25,186.17,2.81]
[1761200527030,2.85,186.26,186.17,2.81]
[1761200528741,16.12,186.32,186.2,2.81]
[1761200528742,4.07051689,186.28,186.2,2.81]
[1761200528931,6.92051689,186.29,186.2,2.81]
[1761200529134,2.85,186.29,186.2,2.81]
[1761200529335,2.85,186.29,186.17,2.81]
[1761200529833,2.85,186.28,186.17,2.81]
[1761200530030,2.85,186.27,186.17,2.81]
[1761200532731,6.91864053,186.31,186.19,2.81]
[1761200532937,2.85,186.31,186.19,2.81]
[1761200533139,2.85,186.31,186.2,7.6421]
[1761200533336,2.85,186.31,186.21,2.81]
[1761200533839,2.85,186.31,186.22,4.8316]
[1761200534136,2.85,186.31,186.22,7.6416]
[1761200534336,2.85,186.31,186.23,2.81]
[1761200535542,2.85,186.36,186.24,2.81]
[1761200536633,2.85,186.35,186.24,2.81]
[1761200537042,2.85,186.35,186.25,4.8307]
[1761200538739,2.85,186.35,186.24,2.81]
[1761200539944,2.85,186.35,186.24,7.641]
[1761200540243,3.25540267,186.38,186.25,2.81]
[1761200540541,2.85,186.37,186.27,4.8301]
[1761200541742,2.85,186.37,186.28,2.81]
[1761200543647,2.85,186.37,186.27,7.6401]
[1761200544044,2.85,186.37,186.28,2.81]
[1761200544246,2.85,186.37,186.29,2.66]
[1761200545944,2.85,186.37,186.3,2.66]
[1761200547547,4.05793497,186.4,186.31,2.66]
[1761200547846,6.74793497,186.4,186.31,2.66]
[1761200548046,2.69,186.4,186.31,2.66]
[1761200548345,6.75010414,186.4,186.27,3.25540267]
[1761200548546,2.69,186.4,186.28,2.66]